bitfinex-derivatives/quotes_BTCF0:USTF0_20241217
["timestamp","ask_amount","ask_price","bid_price","bid_amount"]
[1734413909652,0.046943,106520.0,106510.0,0.079446]
[1734413909844,0.440838,106530.0,106510.0,0.5248256]
[1734413910046,0.407738,106530.0,106520.0,0.046941]
[1734413911748,0.3608,106530.0,106520.0,0.046941]
[1734413911950,0.3608,106530.0,106520.0,0.1315206]
[1734413913063,0.58784666,106540.0,106520.0,0.1315206]
[1734413913858,0.58734666,106540.0,106520.0,0.1315206]
[1734413915260,0.58734666,106540.0,106520.0,0.17758188]
[1734413916552,0.58734666,106540.0,106520.0,0.09300228]
[1734413917856,0.50312397,106540.0,106520.0,0.09300228]
[1734413918056,0.50312397,106540.0,106520.0,0.12292754]
[1734413919452,0.50312397,106540.0,106520.0,0.09300228]
[1734413920053,0.58734666,106540.0,106520.0,0.09300228]
[1734413920458,0.50312397,106540.0,106520.0,0.09300228]
[1734413921349,0.50312397,106540.0,106520.0,0.45380228]
[1734413921755,0.14232397,106540.0,106520.0,0.45380228]
[1734413922859,0.14232397,106540.0,106520.0,0.47293012]
[1734413923964,0.19781698,106540.0,106520.0,0.52842313]
[1734413924381,0.19781698,106540.0,106520.0,0.16762313]
[1734413924667,0.55861698,106540.0,106520.0,0.00589931]
[1734413924850,0.64283967,106540.0,106520.0,0.05283831]
[1734413926073,0.55861698,106540.0,106520.0,0.05283831]
[1734413927363,0.64283967,106540.0,106520.0,0.0712002]
[1734413927555,0.55861698,106540.0,106520.0,0.0712002]
[1734413927753,0.05549301,106530.0,106520.0,0.06530089]
[1734413927961,0.55861698,106540.0,106520.0,0.06530089]
[1734413928650,0.55861698,106540.0,106520.0,0.11334957]
[1734413928853,0.3608,106530.0,106520.0,0.11334957]
[1734413930553,0.64283967,106540.0,106520.0,0.16884258]
[1734413931355,0.64283967,106540.0,106520.0,0.19876784]
[1734413931555,0.55861698,106540.0,106520.0,0.19876784]
[1734413933059,0.64283967,106540.0,106520.0,0.19876784]
[1734413933764,0.69028641,106540.0,106520.0,0.16884258]
[1734413935259,0.3608,106530.0,106520.0,0.16884258]
[1734413935966,0.69028641,106540.0,106520.0,0.16884258]
[1734413936572,0.64283967,106540.0,106520.0,0.11334957]
[1734413936966,0.64283967,106540.0,106520.0,0.16884258]
[1734413937463,0.68977567,106540.0,106520.0,0.16884258]
[1734413937655,0.68977567,106540.0,106520.0,0.14327483]
[1734413938069,0.3608,106530.0,106520.0,0.14327483]
[1734413938374,0.3608,106530.0,106520.0,0.11334957]
[1734413939273,0.3608,106530.0,106520.0,0.16884258]
[1734413942464,0.69959404,106540.0,106530.0,0.046937]
[1734413942665,0.08431266,106540.0,106530.0,0.10243001]
[1734413942973,8.997e-05,106540.0,106530.0,0.19395527]
[1734413943276,8.997e-05,106540.0,106530.0,0.22545527]
[1734413945773,8.997e-05,106540.0,106530.0,0.19553001]
[1734413948176,8.997e-05,106540.0,106530.0,0.58625527]
[1734413952472,8.997e-05,106540.0,106530.0,0.64174828]
[1734413953072,8.997e-05,106540.0,106530.0,0.58625527]
[1734413958581,8.997e-05,106540.0,106530.0,0.64174828]
[1734413959073,0.503626,106560.0,106540.0,0.046929]
[1734413959282,0.503626,106560.0,106550.0,0.05549301]
[1734413959479,0.503626,106560.0,106540.0,0.13234727]
[1734413959480,0.55911901,106560.0,106540.0,0.13234727]
[1734413959676,0.55911901,106560.0,106550.0,0.02992526]
[1734413959873,0.55911901,106560.0,106540.0,0.10242201]
[1734413960084,0.55869485,106560.0,106540.0,0.10242201]
[1734413960684,0.50320184,106560.0,106540.0,0.10242201]
[1734413961080,0.50370184,106560.0,106540.0,0.10242201]
[1734413961693,0.55919485,106560.0,106540.0,0.10242201]
[1734413962008,0.55869485,106560.0,106540.0,0.10242201]
[1734413962589,0.55869485,106560.0,106550.0,0.046931]
[1734413962985,0.55919485,106560.0,106550.0,0.046931]
[1734413963993,0.55869485,106560.0,106550.0,0.046931]
[1734413965084,0.61468786,106560.0,106540.0,0.09344847]
[1734413965289,0.46322601,106550.0,106540.0,0.09344847]
[1734413965485,0.5474487,106550.0,106540.0,0.09344847]
[1734413967693,0.46322601,106550.0,106540.0,0.09344847]
[1734413968187,0.5474487,106550.0,106540.0,0.09344847]
[1734413971499,0.65969608,106550.0,106540.0,0.09344847]
[1734413974899,0.65969608,106550.0,106540.0,0.04651247]
[1734413975201,0.65969608,106550.0,106530.0,0.04694]
[1734413975202,0.046937,106540.0,106530.0,0.04694]
[1734413975499,0.6424224,106540.0,106530.0,0.04694]
[1734413975695,0.6424224,106540.0,106530.0,0.0939187]
[1734413976006,0.6424224,106540.0,106530.0,0.04694]
[1734413978891,0.55813001,106540.0,106530.0,0.04694]
[1734413980100,0.55813001,106540.0,106530.0,0.09274576]
[1734413987395,0.6424224,106540.0,106530.0,0.09274576]
[1734413987905,0.55813001,106540.0,106530.0,0.09274576]
[1734413988493,0.6424224,106540.0,106530.0,0.09274576]
[1734413994497,0.75466978,106540.0,106530.0,0.09274576]
[1734413996902,0.67037739,106540.0,106520.0,0.05549301]
[1734413997107,0.44516552,106530.0,106520.0,0.10243501]
[1734413997606,0.44516552,106530.0,106520.0,0.14938101]
[1734413997804,0.44516552,106530.0,106520.0,0.10243501]
[1734413998401,0.44516552,106530.0,106520.0,0.12103889]
[1734413999708,0.3608,106530.0,106520.0,0.12103889]
[1734414002516,0.3608,106530.0,106520.0,0.15096415]
[1734414006612,0.44516552,106530.0,106520.0,0.15096415]
[1734414007918,0.44516552,106530.0,106520.0,0.12103889]
[1734414009607,0.49210752,106530.0,106520.0,0.06554588]
[1734414010006,0.13130752,106530.0,106520.0,0.06554588]
[1734414010316,0.08436552,106530.0,106520.0,0.12103889]
[1734414011012,0.08436552,106530.0,106520.0,0.05549301]
[1734414011327,0.44516552,106530.0,106520.0,0.046946]
[1734414012310,0.44516552,106530.0,106520.0,0.10243901]
[1734414013011,0.44516552,106530.0,106520.0,0.12146415]
[1734414014013,0.44516552,106530.0,106520.0,0.06597114]
[1734414014216,0.54760053,106530.0,106520.0,0.06597114]
[1734414014618,0.41629301,106530.0,106510.0,0.15479435]
[1734414014817,0.49643901,106520.0,106510.0,0.09346909]
[1734414015121,0.64287431,106520.0,106510.0,0.09396909]
[1734414016010,0.64287431,106520.0,106510.0,0.09346909]
[1734414017019,0.64287431,106520.0,106510.0,0.09396909]
[1734414017614,0.64287431,106520.0,106510.0,0.08796582]
[1734414018021,0.64287431,106520.0,106510.0,0.08746582]
[1734414024025,0.5873813,106520.0,106510.0,0.08746582]
[1734414024229,0.64287431,106520.0,106510.0,0.08746582]
[1734414024537,0.55843901,106520.0,106510.0,0.08746582]
[1734414025232,0.64287431,106520.0,106510.0,0.08746582]
[1734414025531,0.55843901,106520.0,106510.0,0.08746582]
[1734414026029,0.64287431,106520.0,106510.0,0.08746582]
[1734414026820,0.64287431,106520.0,106510.0,0.14295883]
[1734414028429,0.502946,106520.0,106510.0,0.14295883]
[1734414029438,0.502946,106520.0,106510.0,0.1238021]
[1734414031433,0.502946,106520.0,106510.0,0.06830909]
[1734414033026,0.502946,106520.0,106510.0,0.08737851]
[1734414034331,0.55843901,106520.0,106510.0,0.08737851]
[1734414036634,0.502946,106520.0,106510.0,0.08737851]
[1734414036837,0.55843901,106520.0,106510.0,0.08737851]
[1734414040938,0.64287431,106520.0,106510.0,0.08737851]
[1734414046438,0.5873813,106520.0,106510.0,0.11730377]
[1734414047741,0.5873813,106520.0,106510.0,0.08737851]
[1734414050230,0.64287431,106520.0,106510.0,0.08737851]
[1734414051244,0.5873813,106520.0,106510.0,0.08737851]
[1734414052743,0.5873813,106520.0,106510.0,0.11730377]
[1734414055936,0.5873813,106520.0,106510.0,0.08737851]
[1734414056845,0.69962868,106520.0,106510.0,0.08737851]
[1734414057437,0.69962868,106520.0,106510.0,0.06830909]
[1734414057942,0.60442868,106520.0,106510.0,0.06830909]
[1734414058145,0.55748786,106530.0,106510.0,0.21089511]
[1734414058352,0.44524048,106530.0,106520.0,0.15793202]
[1734414058735,0.44524048,106530.0,106520.0,0.10243901]
[1734414060137,0.50073349,106530.0,106520.0,0.046946]
[1734414062650,0.41629301,106530.0,106520.0,0.046946]
[1734414064249,0.3608,106530.0,106520.0,0.046946]
[1734414071955,0.470742,106530.0,106520.0,0.046946]
[1734414075161,0.3608,106530.0,106520.0,0.10243901]
[1734414076055,0.3608,106530.0,106520.0,0.12167086]
[1734414077955,0.3608,106530.0,106520.0,0.06617785]
[1734414081158,0.3608,106530.0,106510.0,0.05190891]
[1734414081353,0.3608,106530.0,106520.0,0.10243901]
[1734414082161,0.63752686,106540.0,106520.0,0.14938501]
[1734414082459,0.3608,106530.0,106520.0,0.10243901]
[1734414085456,0.3608,106530.0,106520.0,0.15793202]
[1734414085755,0.3608,106530.0,106520.0,0.17637673]
[1734414085963,0.0005,106540.0,106530.0,0.046942]
[1734414086163,0.50994882,106550.0,106540.0,0.046937]
[1734414086359,0.42550834,106550.0,106540.0,0.15792302]
[1734414087266,0.42600834,106550.0,106540.0,0.15792302]
[1734414087561,0.36270834,106550.0,106540.0,0.15792302]
[1734414087762,0.36270834,106550.0,106540.0,0.10243001]
[1734414088263,0.36220834,106550.0,106540.0,0.10243001]
[1734414088651,0.36220834,106550.0,106540.0,0.15792302]
[1734414088852,0.36220834,106550.0,106540.0,0.10243001]
[1734414089158,0.36270834,106550.0,106540.0,0.10243001]
[1734414089762,0.36270834,106550.0,106540.0,0.15792302]
[1734414090168,0.36220834,106550.0,106540.0,0.10243001]
[1734414090554,0.36220834,106550.0,106540.0,0.15792302]
[1734414090754,0.36220834,106550.0,106540.0,0.20531569]
[1734414091264,0.36270834,106550.0,106540.0,0.20531569]
[1734414092265,0.36220834,106550.0,106540.0,0.20531569]
[1734414093165,0.36270834,106550.0,106540.0,0.20531569]
[1734414093357,0.36270834,106550.0,106540.0,0.09432967]
[1734414093562,0.36270834,106550.0,106540.0,0.20531569]
[1734414093866,0.36270834,106550.0,106540.0,0.14982268]
[1734414094265,0.36220834,106550.0,106540.0,0.14982268]
[1734414095168,0.36270834,106550.0,106540.0,0.14982268]
[1734414099467,0.41820135,106550.0,106540.0,0.09432967]
[1734414100576,0.41820135,106550.0,106540.0,0.11268535]
[1734414101373,0.41770135,106550.0,106540.0,0.11268535]
[1734414110077,0.50214183,106550.0,106540.0,0.11268535]
[1734414110679,0.66132621,106550.0,106530.0,0.046941]
[1734414110971,0.64357049,106540.0,106530.0,0.046941]
[1734414111570,0.55913001,106540.0,106530.0,0.046941]
[1734414111961,0.64357049,106540.0,106530.0,0.046941]
[1734414112474,0.64357049,106540.0,106530.0,0.0861725]
[1734414115778,0.55913001,106540.0,106530.0,0.0861725]
[1734414118876,0.64357049,106540.0,106530.0,0.0861725]
[1734414119275,0.55913001,106540.0,106530.0,0.0861725]
[1734414120692,0.503637,106540.0,106530.0,0.14166551]
[1734414120994,0.4567,106540.0,106530.0,0.14166551]
[1734414126299,0.44664882,106550.0,106540.0,0.046937]
[1734414126600,0.00140834,106550.0,106540.0,0.13246541]
[1734414127399,0.00140834,106550.0,106540.0,0.10243001]
[1734414130108,0.00140834,106550.0,106540.0,0.13246541]
[1734414130305,0.00140834,106550.0,106540.0,0.10243001]
[1734414130496,0.00140834,106550.0,106540.0,0.15792302]
[1734414130702,0.00140834,106550.0,106540.0,0.10243001]
[1734414133905,0.39357584,106560.0,106550.0,0.046933]
[1734414134111,7.584e-05,106560.0,106550.0,0.46322601]
[1734414134299,0.00057584,106560.0,106550.0,0.46322601]
[1734414134501,0.00057584,106560.0,106550.0,0.51871902]
[1734414135204,7.584e-05,106560.0,106550.0,0.54875442]
[1734414136010,7.584e-05,106560.0,106550.0,0.5187901]
[1734414136201,0.00057584,106560.0,106550.0,0.5187901]
[1734414137208,7.584e-05,106560.0,106550.0,0.5187901]
[1734414137602,7.584e-05,106560.0,106550.0,0.46329709]
[1734414138213,0.00057584,106560.0,106550.0,0.46329709]
[1734414139310,0.00057584,106560.0,106550.0,0.5187901]
[1734414140097,0.00057584,106560.0,106550.0,0.56638566]
[1734414140298,0.00057584,106560.0,106550.0,0.51089265]
[1734414141105,0.00057584,106560.0,106550.0,0.56638566]
[1734414144216,0.0005,106560.0,106550.0,0.56638566]
[1734414145416,0.3921,106580.0,106570.0,0.046924]
[1734414145610,0.3921,106580.0,106570.0,0.10241701]
[1734414146915,0.3608,106580.0,106570.0,0.15791002]
[1734414147303,0.3608,106580.0,106570.0,0.10241701]
[1734414151222,0.42586773,106590.0,106570.0,0.46321701]
[1734414151419,0.42586773,106590.0,106580.0,0.10241301]
[1734414154228,0.42586773,106590.0,106580.0,0.15790602]
[1734414154623,0.42586773,106590.0,106580.0,0.10241301]
[1734414155231,0.42636773,106590.0,106580.0,0.10241301]
[1734414157328,0.48186074,106590.0,106580.0,0.04692]
[1734414157531,0.00056773,106590.0,106580.0,0.57419903]
[1734414157732,0.3608,106610.0,106600.0,0.046911]
[1734414157927,0.55919601,106620.0,106600.0,0.10240401]
[1734414158623,9.074e-05,106610.0,106600.0,0.10240401]
[1734414159339,9.074e-05,106610.0,106600.0,0.046911]
[1734414159631,9.074e-05,106610.0,106600.0,0.10240401]
[1734414161127,0.36089074,106610.0,106600.0,0.10240401]
[1734414163036,0.36089074,106610.0,106600.0,0.14193644]
[1734414163633,0.36089074,106610.0,106600.0,0.19742945]
[1734414167446,0.36089074,106610.0,106590.0,0.3608]
[1734414167645,0.36089074,106610.0,106600.0,0.11098602]
[1734414168136,9.074e-05,106610.0,106600.0,0.15789402]
[1734414169237,0.00059074,106610.0,106600.0,0.15789402]
[1734414173047,0.00059074,106610.0,106600.0,0.12101162]
[1734414173838,0.00059074,106610.0,106600.0,0.17650463]
[1734414176238,9.074e-05,106610.0,106600.0,0.17650463]
[1734414176441,0.36089074,106610.0,106600.0,0.12101162]
[1734414178545,0.36089074,106610.0,106600.0,0.06551861]
[1734414178753,0.36089074,106610.0,106600.0,0.12101162]
[1734414179555,0.36089074,106610.0,106600.0,0.10240101]
[1734414180250,0.36089074,106610.0,106600.0,0.15789402]
[1734414182855,0.36089074,106610.0,106600.0,0.1763096]
[1734414184954,0.36089074,106610.0,106600.0,0.12081659]
[1734414188252,0.36089074,106610.0,106600.0,0.06532358]
[1734414188458,0.40779674,106610.0,106600.0,0.12081659]
[1734414188656,0.40779674,106610.0,106600.0,0.15085199]
[1734414188866,0.40779674,106610.0,106600.0,0.1763096]
[1734414190667,0.40779674,106610.0,106600.0,0.12081659]
[1734414190954,0.36089074,106610.0,106600.0,0.1763096]
[1734414191359,0.36089074,106610.0,106600.0,0.206345]
[1734414191751,0.36089074,106610.0,106600.0,0.1763096]
[1734414197556,0.36089074,106610.0,106600.0,0.06532358]
[1734414197756,0.36089074,106610.0,106600.0,0.12081659]
[1734414203456,0.36089074,106610.0,106600.0,0.06532358]
[1734414203957,0.36089074,106610.0,106600.0,0.12081659]
[1734414211162,0.36089074,106610.0,106600.0,0.15085199]
[1734414211362,0.36089074,106610.0,106600.0,0.12081659]
[1734414214459,0.36089074,106610.0,106600.0,0.15085199]
[1734414216070,0.36089074,106610.0,106600.0,0.1763096]
[1734414216465,0.36089074,106610.0,106600.0,0.12081659]
[1734414216665,0.36089074,106610.0,106600.0,0.1763096]
[1734414217673,0.36089074,106610.0,106600.0,0.12081659]
[1734414218676,0.36089074,106610.0,106600.0,0.1763096]
[1734414219669,0.36089074,106610.0,106600.0,0.12081659]
[1734414220567,0.36089074,106610.0,106600.0,0.1763096]
[1734414223177,0.36089074,106610.0,106600.0,0.12081659]
[1734414224370,0.36089074,106610.0,106600.0,0.10240101]
[1734414226479,0.36089074,106610.0,106600.0,0.12114707]
[1734414231474,0.36089074,106610.0,106600.0,0.15118247]
[1734414232077,0.36089074,106610.0,106600.0,0.12114707]
[1734414232475,0.36089074,106610.0,106600.0,0.06565406]
[1734414232781,0.36089074,106610.0,106600.0,0.12114707]
[1734414234586,0.36089074,106610.0,106600.0,0.05549301]
[1734414234786,0.36089074,106610.0,106600.0,0.10240101]
[1734414236575,0.36089074,106610.0,106600.0,0.1210233]
[1734414239291,0.47313812,106610.0,106600.0,0.1210233]
[1734414242687,0.36089074,106610.0,106600.0,0.1210233]
[1734414242882,0.47313812,106610.0,106600.0,0.1210233]
[1734414243083,0.47313812,106610.0,106600.0,0.10240101]
[1734414243289,0.36089074,106610.0,106600.0,0.10240101]
[1734414244895,0.40779674,106610.0,106600.0,0.10240101]
[1734414246695,0.40779674,106610.0,106600.0,0.12070382]
[1734414246901,0.04699674,106610.0,106600.0,0.12070382]
[1734414247101,0.40779674,106610.0,106600.0,0.12070382]
[1734414247303,0.36089074,106610.0,106600.0,0.17619683]
[1734414247494,0.36089074,106610.0,106600.0,0.12070382]
[1734414247897,0.36089074,106610.0,106600.0,0.17619683]
[1734414248097,0.36089074,106610.0,106600.0,0.12070382]
[1734414250595,0.46328975,106610.0,106600.0,0.01830281]
[1734414250799,0.046911,106600.0,106590.0,0.04764178]
[1734414251003,0.55670401,106600.0,106590.0,0.04764178]
[1734414251207,0.55670401,106600.0,106590.0,0.07770043]
[1734414251403,0.501211,106600.0,106590.0,0.13269344]
[1734414251602,0.501211,106600.0,106590.0,0.15121261]
[1734414252209,0.501211,106600.0,106590.0,0.12115396]
[1734414252408,0.501211,106600.0,106590.0,0.12165396]
[1734414253615,0.501211,106600.0,106590.0,0.12115396]
[1734414254504,0.501211,106600.0,106590.0,0.12165396]
[1734414255812,0.4543,106600.0,106590.0,0.16856896]
[1734414256417,0.4543,106600.0,106590.0,0.12165396]
[1734414257417,0.4543,106600.0,106590.0,0.12115396]
[1734414258217,0.501211,106600.0,106590.0,0.12115396]
[1734414260918,0.140411,106600.0,106590.0,0.12115396]
[1734414261914,0.501211,106600.0,106590.0,0.12115396]
[1734414262116,0.140411,106600.0,106590.0,0.12115396]
[1734414262619,0.40779774,106610.0,106590.0,0.16806696]
[1734414262818,0.40779774,106610.0,106600.0,0.11098602]
[1734414263218,0.40779774,106610.0,106600.0,0.05549301]
[1734414268817,0.52004512,106610.0,106600.0,0.05549301]
[1734414273329,0.046911,106600.0,106590.0,0.11246106]
[1734414273527,0.407711,106600.0,106590.0,0.16795407]
[1734414278317,0.49203175,106600.0,106590.0,0.16795407]
[1734414279829,0.49203175,106600.0,106590.0,0.19801272]
[1734414280033,0.3608,106600.0,106590.0,0.19801272]
[1734414280922,0.44512075,106600.0,106590.0,0.19801272]
[1734414282728,0.44512075,106600.0,106590.0,0.16795407]
[1734414284226,0.44512075,106600.0,106590.0,0.14954779]
[1734414285230,0.44512075,106600.0,106590.0,0.17994779]
[1734414287624,0.49203175,106600.0,106590.0,0.10263479]
[1734414287831,0.49203175,106600.0,106590.0,0.12109945]
[1734414287832,0.58843175,106600.0,106590.0,0.12109945]
[1734414288325,0.58843175,106600.0,106590.0,0.06560644]
[1734414288528,0.58843175,106600.0,106590.0,0.07395767]
[1734414300138,0.58843175,106600.0,106590.0,0.05549301]
[1734414301540,0.22763175,106600.0,106590.0,0.05549301]
[1734414301738,0.94923175,106600.0,106590.0,0.05549301]
[1734414302443,0.99655045,106600.0,106590.0,0.07407348]
[1734414302651,0.99655045,106600.0,106580.0,0.1194329]
[1734414302652,1.00513246,106600.0,106580.0,0.14954778]
[1734414302835,0.407715,106590.0,106580.0,0.14954778]
[1734414303041,0.49203575,106590.0,106580.0,0.14954778]
[1734414303437,0.49203575,106590.0,106580.0,0.14904778]
[1734414304437,0.49203575,106590.0,106580.0,0.14954778]
[1734414305848,0.407715,106590.0,106580.0,0.14954778]
[1734414306047,0.046915,106590.0,106580.0,0.14954778]
[1734414306239,0.407715,106590.0,106580.0,0.14954778]
[1734414306442,0.49203575,106590.0,106580.0,0.14954778]
[1734414307243,0.49203575,106590.0,106580.0,0.16852965]
[1734414308235,0.13123575,106590.0,106580.0,0.16852965]
[1734414308435,0.49203575,106590.0,106580.0,0.16802965]
[1734414308647,0.49203575,106590.0,106580.0,0.12111365]
[1734414309250,0.407715,106590.0,106580.0,0.12111365]
[1734414310743,0.49203575,106590.0,106580.0,0.12111365]
[1734414315454,0.407715,106590.0,106580.0,0.12111365]
[1734414316453,0.46320801,106590.0,106580.0,0.10213178]
[1734414316649,0.407715,106590.0,106580.0,0.10213178]
[1734414317651,0.49203575,106590.0,106580.0,0.10213178]
[1734414318557,0.407715,106590.0,106580.0,0.10213178]
[1734414318854,0.407715,106590.0,106580.0,0.14905178]
[1734414319163,0.49203575,106590.0,106580.0,0.14905178]
[1734414319351,0.407715,106590.0,106580.0,0.14905178]
[1734414319751,0.407715,106590.0,106580.0,0.20454479]
[1734414320057,0.3608,106590.0,106580.0,0.20454479]
[1734414320256,0.44512075,106590.0,106580.0,0.20454479]
[1734414321258,0.44512075,106590.0,106580.0,0.14905178]
[1734414323959,0.44512075,106590.0,106580.0,0.20454479]
[1734414326056,0.3608,106590.0,106580.0,0.20454479]
[1734414326559,0.44512075,106590.0,106580.0,0.20454479]
[1734414328863,0.3608,106590.0,106580.0,0.23460344]
[1734414329252,0.44512075,106590.0,106580.0,0.23460344]
[1734414330368,0.54155339,106600.0,106590.0,0.046915]
[1734414330557,0.44515339,106600.0,106590.0,0.18795967]
[1734414330863,0.3608,106600.0,106590.0,0.18795967]
[1734414331161,0.3608,106600.0,106590.0,0.21795967]
[1734414331361,0.55749151,106610.0,106590.0,0.21795967]
[1734414331564,0.44574413,106610.0,106600.0,0.05549301]
[1734414331871,0.44574413,106610.0,106600.0,0.08555166]
[1734414332560,0.44524413,106610.0,106600.0,0.08555166]
[1734414332763,0.44524413,106610.0,106600.0,0.13246266]
[1734414333557,0.44574413,106610.0,106600.0,0.13246266]
[1734414333763,0.44574413,106610.0,106600.0,0.18795567]
[1734414333962,0.44574413,106610.0,106600.0,0.15789702]
[1734414334665,0.44574413,106610.0,106600.0,0.18795567]
[1734414335856,0.44574413,106610.0,106600.0,0.21885567]
[1734414336164,0.44574413,106610.0,106600.0,0.26564183]
[1734414336761,0.44574413,106610.0,106600.0,0.23558318]
[1734414337958,0.36139074,106610.0,106600.0,0.23558318]
[1734414340356,0.36139074,106610.0,106600.0,0.26868318]
[1734414342760,0.00059074,106610.0,106600.0,0.68504394]
[1734414342966,0.00059074,106610.0,106600.0,0.62955093]
[1734414343368,0.00059074,106610.0,106600.0,0.65960958]
[1734414343568,0.00059074,106610.0,106600.0,0.62955093]
[1734414344166,0.00059074,106610.0,106600.0,0.68504394]
[1734414344468,0.36076,106620.0,106610.0,0.046906]
[1734414344659,0.36076,106620.0,106610.0,0.18809202]
[1734414345566,0.36126,106620.0,106610.0,0.18809202]
[1734414346059,0.36126,106620.0,106610.0,0.13259901]
[1734414346266,0.36126,106620.0,106610.0,0.18809202]
[1734414346657,0.36076,106620.0,106610.0,0.18809202]
[1734414347770,0.36126,106620.0,106610.0,0.13259901]
[1734414347966,0.5011064,106620.0,106600.0,0.14925692]
[1734414348170,0.4243,106610.0,106600.0,0.17931557]
[1734414348470,0.4243,106610.0,106600.0,0.19800725]
[1734414348658,0.4243,106610.0,106600.0,0.1679486]
[1734414352866,0.4243,106610.0,106600.0,0.06554559]
[1734414352867,0.471206,106610.0,106600.0,0.06554559]
[1734414353069,0.52669901,106610.0,106600.0,0.09560424]
[1734414353570,0.52669901,106610.0,106600.0,0.06554559]
[1734414354265,0.52669901,106610.0,106600.0,0.09560424]
[1734414354472,0.52669901,106610.0,106600.0,0.06554559]
[1734414356363,0.52669901,106610.0,106600.0,0.04685391]
[1734414359975,0.6110524,106610.0,106600.0,0.04685391]
[1734414360173,0.55555939,106610.0,106600.0,0.10234692]
[1734414360570,0.6110524,106610.0,106600.0,0.10234692]
[1734414360980,0.6110524,106610.0,106600.0,0.04685391]
[1734414361168,0.52669901,106610.0,106600.0,0.07691256]
[1734414361371,0.52669901,106610.0,106600.0,0.0301264]
[1734414361573,0.6110524,106610.0,106600.0,0.0301264]
[1734414361972,0.6110524,106610.0,106600.0,6.775e-05]
[1734414373477,0.72329978,106610.0,106600.0,6.775e-05]
[1734414375288,0.63894639,106610.0,106600.0,6.775e-05]
[1734414378674,0.67743456,106610.0,106600.0,6.775e-05]
[1734414380383,0.67749348,106610.0,106600.0,6.775e-05]
[1734414380774,0.56518718,106610.0,106600.0,6.775e-05]
[1734414382478,0.67752572,106610.0,106600.0,6.775e-05]
[1734414383487,0.56518718,106610.0,106600.0,6.775e-05]
[1734414383983,0.58355485,106610.0,106600.0,0.05556076]
[1734414384186,0.6043129,106610.0,106600.0,0.10247176]
[1734414385875,0.65980591,106610.0,106600.0,0.04697875]
[1734414388990,0.65980591,106610.0,106600.0,6.775e-05]
[1734414391089,0.65980591,106610.0,106590.0,0.07755588]
[1734414391279,0.3608,106600.0,106590.0,0.07755588]
[1734414391681,0.3608,106600.0,106590.0,0.07705588]
[1734414392082,0.3608,106600.0,106590.0,0.07714445]
[1734414392392,0.3608,106600.0,106590.0,0.11565467]
[1734414392578,0.3608,106600.0,106590.0,0.11615467]
[1734414393693,0.3608,106600.0,106590.0,0.11565467]
[1734414394092,0.407711,106600.0,106590.0,0.11565467]
[1734414394687,0.407711,106600.0,106590.0,0.11615467]
[1734414395485,0.49196905,106600.0,106590.0,0.11615467]
[1734414395694,0.407711,106600.0,106590.0,0.11615467]
[1734414396384,0.46320401,106600.0,106590.0,0.03909879]
[1734414396590,0.49440401,106600.0,106590.0,0.03909879]
[1734414397686,0.49440401,106600.0,106590.0,0.03859879]
[1734414397883,0.57866206,106600.0,106590.0,0.03859879]
[1734414402395,0.52316905,106600.0,106590.0,0.03859879]
[1734414402692,0.57866206,106600.0,106590.0,0.03859879]
[1734414411504,0.52316905,106600.0,106590.0,0.03859879]
[1734414414699,0.57866206,106600.0,106590.0,0.03859879]
[1734414416400,0.52316905,106600.0,106590.0,0.03859879]
[1734414417116,0.57866206,106600.0,106590.0,0.03859879]
[1734414421316,0.52316905,106600.0,106590.0,0.03859879]
[1734414422006,0.6355179,106600.0,106590.0,0.03859879]
[1734414422703,0.69101091,106600.0,106590.0,0.03859879]
[1734414425217,0.60675286,106600.0,106590.0,0.03859879]
[1734414427407,0.63563849,106600.0,106590.0,0.03859879]
[1734414430009,0.6911315,106600.0,106590.0,0.03859879]
[1734414430611,0.6911315,106600.0,106590.0,0.06865744]
[1734414430816,0.69307658,106600.0,106590.0,0.06865744]
[1734414431021,0.60869794,106600.0,106590.0,0.06865744]
[1734414431218,0.60933082,106600.0,106590.0,0.06865744]
[1734414433329,0.66482383,106600.0,106590.0,0.06865744]
[1734414433530,0.66482383,106600.0,106590.0,0.03859879]
[1734414433914,0.66482383,106600.0,106590.0,8.857e-05]
[1734414434116,0.66482383,106600.0,106590.0,0.03014722]
[1734414435419,0.66482383,106600.0,106590.0,8.857e-05]
[1734414436329,0.66482383,106600.0,106570.0,0.05549301]
[1734414436522,0.3608,106580.0,106570.0,0.05549301]
[1734414437032,0.40772,106580.0,106570.0,0.10241601]
[1734414437432,0.41029796,106580.0,106570.0,0.10252291]
[1734414439233,0.41029796,106580.0,106570.0,0.12143713]
[1734414439534,0.41029796,106580.0,106570.0,0.15149578]
[1734414439830,0.41029796,106580.0,106570.0,0.15199578]
[1734414440532,0.41029796,106580.0,106570.0,0.07501413]
[1734414440736,0.41029796,106580.0,106570.0,0.10507278]
[1734414442721,0.41029796,106580.0,106570.0,0.07501413]
[1734414443123,0.77109796,106580.0,106570.0,0.07501413]
[1734414444430,0.82659097,106580.0,106570.0,0.01952112]
[1734414444625,0.82659097,106580.0,106570.0,0.07501413]
[1734414444938,0.77109796,106580.0,106570.0,0.07501413]
[1734414445428,0.82659097,106580.0,106570.0,0.01952112]
[1734414445624,0.85839097,106580.0,106570.0,0.01952112]
[1734414446333,0.85839097,106580.0,106570.0,0.07501413]
[1734414447130,0.85839097,106580.0,106570.0,0.05609991]
[1734414448028,0.80289796,106580.0,106570.0,0.05609991]
[1734414448230,0.80289796,106580.0,106570.0,0.0006069]
[1734414448539,0.80289796,106580.0,106570.0,0.05609991]
[1734414448742,0.85839097,106580.0,106570.0,0.05609991]
[1734414449541,0.80289796,106580.0,106570.0,0.05609991]
[1734414450543,0.85839097,106580.0,106570.0,0.05609991]
[1734414451144,0.80289796,106580.0,106570.0,0.05609991]
[1734414451539,0.80289796,106580.0,106570.0,0.08615856]
[1734414452743,0.80289796,106580.0,106570.0,0.05609991]
[1734414453231,0.80289796,106580.0,106570.0,0.10302391]
[1734414453435,0.80289796,106580.0,106570.0,0.05549301]
[1734414453834,0.80289796,106580.0,106570.0,0.05599301]
[1734414454037,0.80289796,106580.0,106570.0,0.10291701]
[1734414454341,0.80289796,106580.0,106570.0,0.10301542]
[1734414456749,0.75597796,106580.0,106570.0,0.10301542]
[1734414456943,0.75597796,106580.0,106570.0,0.13307407]
[1734414457757,0.75597796,106580.0,106570.0,0.13257407]
[1734414458152,0.75597796,106580.0,106570.0,0.10251542]
[1734414463254,0.39517796,106580.0,106570.0,0.10251542]
[1734414466967,0.36337796,106580.0,106570.0,0.10251542]
[1734414468265,0.1027353,106590.0,106580.0,0.04692]
[1734414468458,0.01416515,106590.0,106580.0,0.60425768]
[1734414468654,0.01416515,106590.0,106580.0,0.54876467]
[1734414468860,0.3937,106600.0,106590.0,0.046915]
[1734414469164,0.3937,106600.0,106590.0,0.13246666]
[1734414469366,0.3937,106600.0,106590.0,0.10240801]
[1734414470968,0.3937,106600.0,106590.0,0.046915]
[1734414471563,0.4267,106600.0,106590.0,0.10240801]
[1734414473769,0.4596,106600.0,106590.0,0.10240801]
[1734414474871,0.4591,106600.0,106590.0,0.10240801]